Cogmind - Beta 16 @@@ ROGUE MODE // 2026.02.05 @ 18:07:22 Player: Artackni Result: Self-destructed Performance ------------- Evolutions (5) 2500 Regions Visited (8) 1600 Robots Destroyed (10) 50 Value Destroyed (199) 199 Prototype IDs (0) 0 Alien Tech Used (0) 0 Bonus (200) 200 TOTAL SCORE: 4549 Bonus ------- Pacifist 200 Cogmind --------- Core Integrity 212/1000 Matter 120/300 Energy 99/100 System Corruption 0% Temperature Cool (0) Movement Core (50) Location -5/Factory Parts ------- > --- POWER (1) -------- (None) > --- PROPULSION (10) -- (None) > --- UTILITY (4) ------ (None) > --- WEAPON (2) ------- (None) > --- INVENTORY (5) ---- Nuclear Core Nuclear Pulse Array Improved Sensor Array Improved Plasma Cutter Peak State ------------ > --- POWER ------------ (None) > --- PROPULSION ------- Improved Treads Improved Carbon-fiber Leg Armored Wheel Armored Wheel Armored Wheel > --- UTILITY ---------- Advanced Visual Processing Unit Advanced Visual Processing Unit > --- WEAPON ----------- Rocket Launcher > --- INVENTORY -------- Nuclear Core Improved Sensor Array Improved Signal Interpreter Hacking Suite [Rating: 21] Favorites ----------- Power None Propulsion Armored Wheel Treads Improved Treads Leg Improved Carbon-fiber Leg Wheel Armored Wheel Utility Advanced Visual Processing Unit Processor Advanced Visual Processing Unit Hackware System Shield Weapon Rocket Launcher Launcher Rocket Launcher Build | -11 -10 -9 -8 -7 -6 -6 -6 -5 ------- Run | Yrd Mat Mat Mat Fac Fac Low Low Fac Slots Evolved 10 | . . 2 2 2 2 . . 2 Power . | . . . . . . . . . Propulsion 8 | . . 2 2 1 1 . . 2 Utility 2 | . . . . 1 1 . . . Weapon . | . . . . . . . . . Parts Attached 12 | . . 5 . 2 1 . . 4 Power . | . . . . . . . . . Engine . | . . . . . . . . . Core . | . . . . . . . . . Reactor . | . . . . . . . . . Propulsion 6 | . . 4 . . 1 . . 1 Treads 2 | . . 1 . . . . . 1 Leg 1 | . . . . . 1 . . . Wheel 3 | . . 3 . . . . . . Hover . | . . . . . . . . . Flight . | . . . . . . . . . Utility 5 | . . . . 2 . . . 3 Device . | . . . . . . . . . Storage . | . . . . . . . . . Processor 3 | . . . . 2 . . . 1 Hackware 2 | . . . . . . . . 2 Protection . | . . . . . . . . . Artifact . | . . . . . . . . . Weapon 1 | . . 1 . . . . . . Energy Gun . | . . . . . . . . . Energy Cannon . | . . . . . . . . . Ballistic Gun . | . . . . . . . . . Ballistic Cannon . | . . . . . . . . . Launcher 1 | . . 1 . . . . . . Special Weapon . | . . . . . . . . . Impact Weapon . | . . . . . . . . . Slashing Weapon . | . . . . . . . . . Piercing Weapon . | . . . . . . . . . Special Melee Weapon . | . . . . . . . . . Unidentified Prototypes . | . . . . . . . . . Parts Lost 9 | . . . . . . 5 . 4 Power . | . . . . . . . . . Propulsion 6 | . . . . . . 4 . 2 Utility 2 | . . . . . . . . 2 Weapon 1 | . . . . . . 1 . . Highest Loss Streak 3 | . . . . . . 3 . 2 To Critical Strikes 1 | . . . . . . 1 . . Average Backups 3 | . . . 3 5 5 4 4 4 Power . | . . . 1 1 1 1 1 1 Propulsion . | . . . . . . . . . Utility 1 | . . . 1 3 3 3 3 1 Weapon . | . . . 1 1 1 . . . Tool/Special . | . . . . . . . . . Unused Backups 4 | . . . . . . . . 4 Power 1 | . . . . . . . . 1 Propulsion 1 | . . . . . . . . 1 Utility 1 | . . . . . . . . 1 Weapon . | . . . . . . . . . Tool/Special 1 | . . . . . . . . 1 Average Slot Usage (%) 27 | . . 22 36 32 45 34 20 18 Treads 3 | . . 6 9 7 6 3 . . Leg 1 | . . . . . 5 3 . . Wheel 11 | . . 14 27 23 20 11 6 2 Processor 8 | . . . . 2 13 13 13 9 Hackware 1 | . . . . . . . . 4 Peak Build Rating 21 | . . 10 10 15 19 21 9 17 Average Rating 11 | . . 4 8 11 18 14 9 11 On Entrance 7 | . . . 8 9 15 19 9 9 Avg Prop Armor Cover (%) 36 | . . 40 42 42 42 36 26 25 Naked Turns 89 | . 48 23 . . . . . 18 Heaviest Build . | . . . . . . . . . Greatest Support 27 | 3 3 3 3 3 3 3 3 27 Greatest Overweight (x) . | . . . . . . . . . Average Overweight (x) . | . . . . . . . . . Largest Inventory Capacity 5 | 5 5 5 5 5 5 5 5 5 Average Capacity 5 | 5 5 5 5 5 5 5 5 5 Most Carried 5 | . . 2 5 5 5 4 4 5 Average Carried 3 | . . . 3 5 5 4 4 4 Final Capacity 5 | 5 5 5 5 5 5 5 5 5 Final Carried 5 | . . 2 5 5 5 4 4 5 Class Distribution -------------------- 92% | Mutant 7% | Hacker-Mutant Dominant Class ---------------- Mutant | -10/Materials Mutant | -9/Materials Mutant | -8/Materials Mutant | -7/Factory Mutant | -6/Factory Mutant | -6/Lower Caves Mutant | -6/Lower Caves Mutant | -5/Factory Resources | -11 -10 -9 -8 -7 -6 -6 -6 -5 ----------- Run | Yrd Mat Mat Mat Fac Fac Low Low Fac Matter Collected 170 | 70 . . 93 . . 7 . . Remotely . | . . . . . . . . . Salvage Created 66 | . . 34 . . . 32 . . Parts 11 | . . 9 . . . 2 . . Haulers Intercepted . | . . . . . . . . . Recyclers Shooed . | . . . . . . . . . Parts Field Recycled . | . . . . . . . . . Retrieved Matter . | . . . . . . . . . Parts Self-Destructed 2 | . . . . . . 2 . . Prevented . | . . . . . . . . . Parts Restored . | . . . . . . . . . Kills | -11 -10 -9 -8 -7 -6 -6 -6 -5 ------- Run | Yrd Mat Mat Mat Fac Fac Low Low Fac Combat Hostiles Destroyed 9 | . . 5 . . . 4 . . AOE 9 | . . 5 . . . 4 . . Classes Destroyed 3 | . . 3 . . . . . . Tunneler 1 | . . 1 . . . . . . Swarmer 8 | . . 4 . . . 4 . . Grunt 1 | . . 1 . . . . . . Best Kill Streak 6 | . . 6 . . . 4 . . Combat Bots Only 5 | . . 5 . . . 4 . . Max Kills in Single Turn 3 | . . 3 . . . 1 . . Gunslinging . | . . . . . . . . . Exploded 3 | . . 3 . . . 1 . . Melee . | . . . . . . . . . Uniques/NPCs Destroyed . | . . . . . . . . . Combat | -11 -10 -9 -8 -7 -6 -6 -6 -5 -------- Run | Yrd Mat Mat Mat Fac Fac Low Low Fac Hostile Shots Fired 196 | . 5 21 11 . . 38 . 121 Missed 61 | . . 5 6 . . 11 . 39 Hits 135 | . 5 16 5 . . 27 . 82 Projectile 135 | . 5 16 5 . . 27 . 82 Critical Strikes 3 | . . 1 . . . 2 . . Damage Taken 2421 | . 61 284 89 . 5 624 . 1358 Core 1210 | . 61 133 61 . . 167 . 788 Absorbed by Shields . | . . . . . . . . . Core Remaining (%) 84 | 100 75 66 88 100 . . 80 . Volleys Fired 8 | . . 3 1 . . 4 . . Largest 1 | . . 1 1 . . 1 . . Hottest 33 | . . 33 33 . . 33 . . Shots Fired 8 | . . 3 1 . . 4 . . Gun . | . . . . . . . . . Cannon . | . . . . . . . . . Launcher 8 | . . 3 1 . . 4 . . Special . | . . . . . . . . . Kinetic . | . . . . . . . . . Thermal . | . . . . . . . . . Explosive 8 | . . 3 1 . . 4 . . Electromagnetic . | . . . . . . . . . Robot Hit Streak 2 | . . 1 . . . 2 . . Robot Miss Streak 3 | . . 1 . . . 3 . . Penetration Max . | . . . . . . . . . Secondary Targets . | . . . . . . . . . Shots Hit Robots 3 | . . 1 . . . 2 . . Core Hits 15 | . . 9 . . . 6 . . Critical Kills . | . . . . . . . . . Critical Parts Destroyed . | . . . . . . . . . Critical Strikes . | . . . . . . . . . Melee Attacks . | . . . . . . . . . Impact . | . . . . . . . . . Slashing . | . . . . . . . . . Piercing . | . . . . . . . . . Sneak Attacks . | . . . . . . . . . Combat Hostiles . | . . . . . . . . . Follow-up Attacks . | . . . . . . . . . Damage Inflicted 873 | . . 367 . . 11 452 . 43 Guns . | . . . . . . . . . Cannons . | . . . . . . . . . Explosions 819 | . . 367 . . . 452 . . Melee . | . . . . . . . . . Ramming 54 | . . . . . 11 . . 43 Kinetic . | . . . . . . . . . Thermal . | . . . . . . . . . Explosive 819 | . . 367 . . . 452 . . Electromagnetic . | . . . . . . . . . Impact . | . . . . . . . . . Slashing . | . . . . . . . . . Piercing . | . . . . . . . . . Highest Corruption . | . . . . . . . . . Average Corruption . | . . . . . . . . . Corruption Purged . | . . . . . . . . . Corruption Blocked . | . . . . . . . . . Overload Shots . | . . . . . . . . . Overflow Damage 65 | . . 11 . . . 54 . . Projectiles . | . . . . . . . . . Explosions 65 | . . 11 . . . 54 . . Melee . | . . . . . . . . . Knockbacks 2 | . . . . . 1 . . 1 Impact 2 | . . . . . 1 . . 1 Kinetic . | . . . . . . . . . Secondary . | . . . . . . . . . Self-Inflicted Damage 284 | . . 58 28 . 5 174 . 19 Shots 7 | . . 2 1 . . 4 . . Rammed 10 | . . . . . 1 . . 9 Targets Rammed 10 | . . . . . 1 . . 9 Kicked . | . . . . . . . . . Crushed . | . . . . . . . . . Highest Temperature . | . . . . . . . . . Average Temperature . | . . . . . . . . . Received Heat Transfer 336 | . 33 87 18 . . 9 . 189 Siege Activations . | . . . . . . . . . Martial Activations . | . . . . . . . . . Shielding Activations . | . . . . . . . . . Robots Disrupted . | . . . . . . . . . Combat Hostiles . | . . . . . . . . . Robots Corrupted . | . . . . . . . . . Combat Hostiles . | . . . . . . . . . Parts Fried . | . . . . . . . . . Impact Corruptions . | . . . . . . . . . Robots Melted . | . . . . . . . . . Combat Hostiles . | . . . . . . . . . Parts Melted . | . . . . . . . . . Heat Transferred . | . . . . . . . . . Parts Sabotaged . | . . . . . . . . . Parts Stolen . | . . . . . . . . . Parts Stripped . | . . . . . . . . . Power Chain Reactions . | . . . . . . . . . Alert | -11 -10 -9 -8 -7 -6 -6 -6 -5 ------- Run | Yrd Mat Mat Mat Fac Fac Low Low Fac Maximum Alert Level . | . . . . . . . . . Low Security (%) 100 | 100 100 100 100 100 100 . . 100 Level 1 . | . . . . . . . . . Level 2 . | . . . . . . . . . Level 3 . | . . . . . . . . . Level 4 . | . . . . . . . . . Level 5 . | . . . . . . . . . High Security . | . . . . . . . . . Max Security . | . . . . . . . . . Peak Influence 164 | . 30 164 84 24 6 . . 125 Initial 60 | . . 12 60 24 6 . . 6 Average 26 | . 3 67 69 21 1 . . 19 Influence Increases 541 | . 30 172 24 . . 105 . 210 Destroy 0b10 Robot/C 180 | . . 100 . . . 80 . . Destroy 0b10 Robot/NC 5 | . . 5 . . . . . . Destroy Leader 20 | . . 10 . . . 10 . . Disable Machine 15 | . . . 15 . . . . . Destroy Structure 36 | . . 27 9 . . . . . Partial Spotted 30 | . . 15 . . . . . 15 Lose Combat Pursuer 255 | . 30 15 . . . 15 . 195 Influence Decreases 416 | . . 58 114 40 14 90 4 96 Entered New Map 149 | . . 18 84 30 8 . 4 5 Time Decay 192 | . . 40 30 10 6 40 . 66 Lost Part 75 | . . . . . . 50 . 25 Squads Dispatched 6 | . 1 . 3 . . . . 2 Investigation . | . . . . . . . . . Extermination 1 | . . . . . . . . 1 Reinforcement 3 | . 1 . 1 . . . . 1 Assault 2 | . . . 2 . . . . . Garrison . | . . . . . . . . . Intercept . | . . . . . . . . . Searches Triggered . | . . . . . . . . . Construction Impeded . | . . . . . . . . . Haulers Reinforced . | . . . . . . . . . Active Scanning Responses . | . . . . . . . . . Cargo Convoy Interrupts . | . . . . . . . . . Stealth | -11 -10 -9 -8 -7 -6 -6 -6 -5 --------- Run | Yrd Mat Mat Mat Fac Fac Low Low Fac Distress Signals 5 | . . . 3 . . . . 2 Communications Jammed . | . . . . . . . . . Distress Signals . | . . . . . . . . . Times Spotted 57 | . 7 8 14 . 2 7 . 19 Peak Tracking Total 10 | . 7 9 10 . 1 4 . 10 Tactical Retreats 7 | . 1 1 . . . 1 . 4 Traps | -11 -10 -9 -8 -7 -6 -6 -6 -5 ------- Run | Yrd Mat Mat Mat Fac Fac Low Low Fac Traps Triggered 2 | . . . . . . . . 2 Indirectly . | . . . . . . . . . Trap Hack Attempts . | . . . . . . . . . Triggered . | . . . . . . . . . Disarmed . | . . . . . . . . . Reprogrammed . | . . . . . . . . . Reused . | . . . . . . . . . Traps Extracted . | . . . . . . . . . Installed . | . . . . . . . . . Triggered . | . . . . . . . . . Machines | -11 -10 -9 -8 -7 -6 -6 -6 -5 ---------- Run | Yrd Mat Mat Mat Fac Fac Low Low Fac Machines Disabled 1 | . . . 1 . . . . . Max in Single Turn 1 | . . . 1 . . . . . Garrison Access 1 | . . . 1 . . . . . Machines Repaired . | . . . . . . . . . Machines Dismantled . | . . . . . . . . . Machines Sabotaged . | . . . . . . . . . Overloaded Fab Kills . | . . . . . . . . . Hacking | -11 -10 -9 -8 -7 -6 -6 -6 -5 --------- Run | Yrd Mat Mat Mat Fac Fac Low Low Fac Machines Accessed . | . . . . . . . . . Terminals . | . . . . . . . . . Fabricators . | . . . . . . . . . Repair Stations . | . . . . . . . . . Recycling Units . | . . . . . . . . . Scanalyzers . | . . . . . . . . . Garrison Access . | . . . . . . . . . Total Hacks . | . . . . . . . . . Successful . | . . . . . . . . . Failed . | . . . . . . . . . Catastrophic . | . . . . . . . . . Database Lockouts . | . . . . . . . . . Manual . | . . . . . . . . . Terminals . | . . . . . . . . . Fabricators . | . . . . . . . . . Repair Stations . | . . . . . . . . . Recycling Units . | . . . . . . . . . Scanalyzers . | . . . . . . . . . Garrison Access . | . . . . . . . . . Terminal Hacks . | . . . . . . . . . Fabricator Hacks . | . . . . . . . . . Repair Station Hacks . | . . . . . . . . . Recycling Unit Hacks . | . . . . . . . . . Scanalyzer . | . . . . . . . . . Garrison Access Hacks . | . . . . . . . . . Unauthorized Hacks . | . . . . . . . . . Terminals . | . . . . . . . . . Fabricators . | . . . . . . . . . Repair Stations . | . . . . . . . . . Recycling Units . | . . . . . . . . . Scanalyzers . | . . . . . . . . . Garrison Access . | . . . . . . . . . Data Cores Recovered . | . . . . . . . . . Used . | . . . . . . . . . Hacking Detections . | . . . . . . . . . Full Trace Events . | . . . . . . . . . Feedback Events . | . . . . . . . . . Feedback Blocked . | . . . . . . . . . Robot Schematics Acquired . | . . . . . . . . . Robots Built . | . . . . . . . . . Authchips . | . . . . . . . . . Time . | . . . . . . . . . Total Robot Build Rating . | . . . . . . . . . Part Schematics Acquired . | . . . . . . . . . Parts Built . | . . . . . . . . . Authchips . | . . . . . . . . . Time . | . . . . . . . . . Total Part Build Rating . | . . . . . . . . . Part Studies Acquired . | . . . . . . . . . Parts Repaired . | . . . . . . . . . Time . | . . . . . . . . . Parts Recycled . | . . . . . . . . . Recycled Matter . | . . . . . . . . . Retrieved Matter . | . . . . . . . . . Retrieved Components . | . . . . . . . . . Parts Scanalyzed . | . . . . . . . . . Part Schematics Acquired . | . . . . . . . . . Parts Damaged . | . . . . . . . . . Bothacking | -11 -10 -9 -8 -7 -6 -6 -6 -5 ------------ Run | Yrd Mat Mat Mat Fac Fac Low Low Fac Used RIF Installer . | . . . . . . . . . Robots Hacked . | . . . . . . . . . Non-combat . | . . . . . . . . . Combat . | . . . . . . . . . Robot Hacks Applied . | . . . . . . . . . Relay Couplers Released . | . . . . . . . . . Fabnet Peak Effective % . | . . . . . . . . . Robots Rewired 1 | . . . . . . . . 1 Allies Hacked . | . . . . . . . . . Hacks Repelled . | . . . . . . . . . Allies | -11 -10 -9 -8 -7 -6 -6 -6 -5 -------- Run | Yrd Mat Mat Mat Fac Fac Low Low Fac Total Allies 1 | . . . . . . . . 1 Largest Group 1 | . . . . . . . . 1 Highest-Rated Group 12 | . . . . . . . . 12 Highest-Rated Ally 12 | . . . . . . . . 12 Total Orders . | . . . . . . . . . Ally Attacks 3 | . . . . . . . . 3 Total Damage 29 | . . . . . . . . 29 Kills . | . . . . . . . . . Allies Corrupted . | . . . . . . . . . Allies Melted . | . . . . . . . . . Intel | -11 -10 -9 -8 -7 -6 -6 -6 -5 ------- Run | Yrd Mat Mat Mat Fac Fac Low Low Fac Active Infowar (turns) 470 | . . . . 12 114 139 16 189 Optics 470 | . . . . 12 114 139 16 189 Robot Analysis Total . | . . . . . . . . . Derelict Logs Recovered 1 | . . . . . . 1 . . Drone Launches . | . . . . . . . . . Drone Recoveries . | . . . . . . . . . Exploration | -11 -10 -9 -8 -7 -6 -6 -6 -5 ------------- Run | Yrd Mat Mat Mat Fac Fac Low Low Fac Turns Passed 721 | 9 48 81 66 24 114 139 16 224 Spaces Moved 1257 | 18 96 130 118 41 223 259 32 340 Core 1243 | 18 96 130 118 41 223 259 32 326 Treads 14 | . . . . . . . . 14 Legs . | . . . . . . . . . Wheels . | . . . . . . . . . Hover . | . . . . . . . . . Flight . | . . . . . . . . . Fastest Speed 50 | 50 50 50 50 50 50 50 50 50 Average Speed 51 | 50 50 50 50 50 50 50 50 54 Slowest Speed 170 | 50 50 50 50 50 50 50 50 170 Overloaded Moves . | . . . . . . . . . Propulsion Burnouts . | . . . . . . . . . Robots Hopped . | . . . . . . . . . Potential Cave-ins . | . . . . . . . . . Cave-ins Triggered . | . . . . . . . . . Exploration Rate (%) 17 | 3 35 17 17 1 9 57 8 13 Regions Visited 8 Branch Regions 2 Pre-discovered Areas . | . . . . . . . . . Known Exits Taken . | . . . . . . . . . Unknown Exits Taken 8 | 1 1 1 1 1 1 1 1 . Scrap Searched . | . . . . . . . . . Spaces Dug . | . . . . . . . . . Terrain Destroyed 60 | . . 32 9 . . 19 . . Melee . | . . . . . . . . . Projectile . | . . . . . . . . . AOE 60 | . . 32 9 . . 19 . . Terrain Rammed . | . . . . . . . . . Walls Destroyed . | . . . . . . . . . Machines Disabled . | . . . . . . . . . Actions | -11 -10 -9 -8 -7 -6 -6 -6 -5 --------- Run | Yrd Mat Mat Mat Fac Fac Low Low Fac Total 1310 | 17 95 140 123 42 224 263 31 375 Wait . | . . . . . . . . . Move 1249 | 17 95 129 117 40 222 258 31 340 Hop . | . . . . . . . . . Pick Up 7 | . . 2 3 . . . . 2 Fast Attach 9 | . . 4 . 2 1 . . 2 Attach 5 | . . 1 1 . . 1 . 2 Detach 3 | . . 1 1 . . . . 1 Swap . | . . . . . . . . . Drop . | . . . . . . . . . Fire 8 | . . 3 1 . . 4 . . Melee . | . . . . . . . . . Ram 8 | . . . . . 1 . . 7 Kick . | . . . . . . . . . Crush 2 | . . . . . . . . 2 Escape Stasis 15 | . . . . . . . . 15 Rewire 4 | . . . . . . . . 4 Trap . | . . . . . . . . . Miscellaneous . | . . . . . . . . . Route ------- -11/Scrapyard -10/Materials (discovered 2 exits: [*Mat] / [*Min]) -9/Materials -8/Materials -7/Factory -6/Factory -6/Lower Caves -6/Lower Caves -5/Factory (discovered 2 exits: *Upp x2) History --------- Turn | Location | Event 3 | -11/Scrapyard | Discovered new exit (range 15) 10 | -11/Scrapyard | Entered Materials 40 | -10/Materials | Discovered new exit (range 14) 55 | -10/Materials | Discovered new exit (range 7) 58 | -10/Materials | Entered another Materials area 58 | -9/Materials | Evolved 2 slots: Propulsion x2 133 | -9/Materials | Discovered new exit (range 12) 139 | -9/Materials | Entered another Materials area 139 | -8/Materials | Evolved 2 slots: Propulsion x2 170 | -8/Materials | Met 7R-MNS 202 | -8/Materials | Discovered new exit (range 5) 205 | -8/Materials | Entered Factory 205 | -7/Factory | Evolved 2 slots: Propulsion x1, Utility x1 225 | -7/Factory | Discovered new exit (range 8) 229 | -7/Factory | Entered another Factory area 229 | -6/Factory | Evolved 2 slots: Propulsion x1, Utility x1 303 | -6/Factory | Build established: Mutant 337 | -6/Factory | Discovered new exit (range 13) 343 | -6/Factory | Entered Lower Caves 409 | -6/Lower Caves | Learned Factory terminal intel 469 | -6/Lower Caves | Lost 3 parts (3n) 478 | -6/Lower Caves | Discovered new exit (range 6) 482 | -6/Lower Caves | Entered another Lower Caves area 491 | -6/Lower Caves | Discovered new exit (range 20) 498 | -6/Lower Caves | Entered Factory 498 | -5/Factory | Evolved 2 slots: Propulsion x2 499 | -5/Factory | Loaded intel: 27 terminal locations 577 | -5/Factory | Discovered new exit (range 14) 585 | -5/Factory | Identified exit to Upper Caves 586 | -5/Factory | Discovered exit to Upper Caves (range 18) 669 | -5/Factory | Core integrity fell below 50% 722 | -5/Factory | Self-destructed Last Messages --------------- 00608_ W-25 Informer sends out distress signal. 00613_ Slammed into S-27 Virus. 00615_ Arm. Wheel destroyed. 00617_ Hacking Suite destroyed. 00628_ Slammed into K-01 Serf. 00630_ O-24 Administrator sends out distress signal. 00630_ O-24 Administrator: "IFF HANDSHAKE FAILED. SECURING TERMINAL." 00640_ ALERT: Hostiles spotted, dispatching reinforcements to Terminal F016. 00662_ Acquired Arm. Medium Treads. 00668_ Slammed into G-50 Soldier. 00687_ Adv. Visual Processing Unit destroyed. 00688_ ALERT: Potential suspicious activity detected, Programmers report to Factory Zone 3I. 00689_ Arm. Medium Treads destroyed. 00693_ S-27 Virus destroyed. 00704_ Triggered Blade Trap. 00704_ Massive razor-sharp blades shoot up from within the floor. 00704_ Imp. Signal Interpreter severed. 00704_ System Shield severed. Map ----- +----------------------------------------------------+ | ?????????????????????????????????? | | ?????????????????????????????????? | | ?????????????????????????????????? | | ?????????????????????????????????? | | ?????????????????????????????????? | | ?????????????????????????????????? | | ?????????????????????????????????? | | ?????????????????????????????????? | | ?????????????????????????????????? | | ?????????????????????????????????? | | ???##########????????????????????? | | ???# #????????????????????? | | ???# """"" #????????????????????? | | ???# """"" !#????????????????????? | | ???# """ #????????????????????? | | ???# #????????????????????? | | ???# """"" #????????????????????? | | ???# """"" #????????????????????? | | ???# """ #????????????????????? | | ???# #????????????????????? | | ???###+#+###########?????????????? | | ?????# #?????????????? | | ?????# #?????????????? | | ?????# #?????????????? | | ????####+####### #?????????????? | | ??# @ # #?????????????? | | ??# """"""""" # #?????????????? | | ??# # #?????????????? | | ??# """"""""" # #?????????????? | | ??# # #?????????????? | | ??############## #?????????????? | | ??????????????## #?????????????? | | ??????????????# #?????????????? | | ??????????????#T +?????????????? | | ??????????????## #?????????????? | | ???????????????# #?????????????? | | ???????????????# #?????????????? | | ???????????????# #?????????????? | | ???????????????# #?????????????? | | ???????????????# #?????????????? | | ???????#+##+#### ##????????????? | | ???????# #????????????? | | ???????# #????????????? | | ???????# """"" ###### #?? | | ???????# ""T"" T #?? | | ???????# ##### "" ??? | | ???????## #???????????? | | ????????# #???????????? | | ????????+ #???????????? | | ????????# #???????????? | +----------------------------------------------------+ Best States ------------- Heat Dissipation 40 Energy Generation 5 Energy Capacity 100 Matter Stores 170 Matter Capacity 300 Sight Range 20 Terrain Scan Density 10 Evasion (%) 50 Recoil Reduction 1 Offensive Hacking 10 Defensive Hacking 10 Item Schematics ----------------- None Robot Schematics ------------------ None Fabricated ------------ Nothing Repaired ---------- Nothing Studied --------- None Alien Tech Used ----------------- None Achievements -------------- None Challenges ------------ None Game ------ Seed MappingSiegeCloak Manual? 0 Play Time 00:13:28 Cumulative 135.1 hours Start 2026.02.05 @ 17:47:30 End 2026.02.05 @ 18:07:22 Sessions 1 Manual Loads 0 Difficulty Rogue Special Mode None Game No. 71 Rogue 71 Adventurer 0 Explorer 0 Win Type - Total 7 Types 6/0/1/0/0/0/0/0/0/0 Lore% 60 Gallery% 65 Achievement% 58 Wizard Run 0 Options --------- Layout 0 ASCII 0 Keyboard 1 Movement Arrows Keybinds 0 Fullscreen 1 Font 18/SmallcapsGlow Map View 76x50 Zoom Use 0% Tactical HUD 1 Map Filters NONE Filters NONE Steam 1 RUN: 4769a431-4b9b-413b-9b60-46130c80e5e3